bitfinex-derivatives/quotes_BTCF0:USTF0_20241015
["timestamp","ask_amount","ask_price","bid_price","bid_amount"]
[1729002547439,0.074585,67047.0,67038.0,0.3608]
[1729002547440,0.7608,67047.0,67038.0,0.3608]
[1729002547634,0.074586,67046.0,67045.0,0.04559427]
[1729002547839,0.76292001,67047.0,67045.0,0.001]
[1729002548047,0.074586,67046.0,67045.0,0.001]
[1729002548752,0.074586,67046.0,67038.0,0.3608]
[1729002548753,0.401,67046.0,67038.0,0.001]
[1729002548941,0.7608,67039.0,67007.0,0.4]
[1729002549136,0.074588,67045.0,67013.0,0.074623]
[1729002549137,0.074611,67024.0,67013.0,0.074623]
[1729002549345,0.074611,67024.0,67002.0,0.7608]
[1729002549546,0.074611,67024.0,67016.0,0.074619]
[1729002549742,0.074611,67024.0,67008.0,0.77212038]
[1729002549743,0.36292001,67026.0,67008.0,0.77212038]
[1729002549945,0.3608,67026.0,67020.0,0.074615]
[1729002550343,0.435409,67026.0,67019.0,0.074616]
[1729002550742,0.3608,67026.0,67024.0,0.22468656]
[1729002550944,0.3608,67026.0,67024.0,0.29929656]
[1729002551147,0.3608,67026.0,67024.0,0.22468656]
[1729002551347,0.3618,67026.0,67024.0,0.22468656]
[1729002551551,0.3618,67026.0,67025.0,0.07461]
[1729002551741,0.002,67026.0,67024.0,0.22468656]
[1729002551942,0.002,67026.0,67025.0,0.22378839]
[1729002552139,0.001,67026.0,67023.0,0.37497896]
[1729002552338,0.002,67026.0,67025.0,0.22518402]
[1729002552752,0.001,67026.0,67025.0,0.07461]
[1729002552945,0.002,67026.0,67025.0,0.2988141]
[1729002553951,0.476609,67026.0,67025.0,0.2242041]
[1729002554151,0.07461,67025.0,67024.0,0.014]
[1729002554544,0.002,67026.0,67024.0,0.014]
[1729002554754,0.001,67026.0,67023.0,0.00017896]
[1729002555049,0.002,67026.0,67025.0,0.014]
[1729002555451,0.3628,67026.0,67025.0,0.014]
[1729002556052,0.3618,67026.0,67025.0,0.014]
[1729002556248,0.3628,67026.0,67025.0,0.014]
[1729002557048,0.07461,67025.0,67024.0,0.014]
[1729002557248,0.002,67026.0,67024.0,0.014]
[1729002557448,0.07461,67025.0,67024.0,0.23688645]
[1729002557654,0.07461,67025.0,67024.0,0.014]
[1729002557848,0.074611,67024.0,67023.0,0.00017896]
[1729002558151,0.8084,67024.0,67000.0,0.3608]
[1729002558351,0.3608,67011.0,67000.0,0.3608]
[1729002558550,0.3608,67011.0,67004.0,0.22310938]
[1729002558551,0.074632,67005.0,67004.0,0.22310938]
[1729002558751,0.074658,66982.0,66981.0,0.01114361]
[1729002559050,0.074663,66977.0,66967.0,0.0224]
[1729002559357,0.435458,66982.0,66981.0,0.179]
[1729002559560,0.074659,66981.0,66972.0,0.29847822]
[1729002559848,0.3608,66982.0,66971.0,0.37169262]
[1729002560047,0.4,66977.0,66973.0,0.13291644]
[1729002560252,0.4,66977.0,66972.0,0.22248167]
[1729002560452,0.3608,66982.0,66974.0,0.22248167]
[1729002560652,0.074662,66978.0,66974.0,0.22248167]
[1729002560959,0.074662,66978.0,66972.0,0.22248167]
[1729002561256,0.3608,66982.0,66975.0,0.22404137]
[1729002561548,0.3608,66982.0,66970.0,0.00019314]
[1729002561549,0.7608,66976.0,66970.0,0.00019314]
[1729002561752,0.07467,66971.0,66970.0,0.00019314]
[1729002561950,0.7608,66976.0,66974.0,0.001]
[1729002562258,0.027,66978.0,66975.0,0.22347698]
[1729002562448,0.027,66978.0,66977.0,0.074663]
[1729002562648,0.013,66978.0,66977.0,0.074663]
[1729002562849,0.013,66978.0,66977.0,0.29813998]
[1729002563752,0.013,66978.0,66977.0,0.74605998]
[1729002563951,0.013,66978.0,66977.0,0.22347698]
[1729002564352,0.013,66978.0,66975.0,0.22466556]
[1729002564554,0.013,66978.0,66974.0,0.3618]
[1729002564753,0.013,66976.0,66975.0,0.22466556]
[1729002565749,0.074664,66976.0,66975.0,0.22466556]
[1729002566060,0.074664,66976.0,66975.0,0.001]
[1729002566759,0.07468,66962.0,66961.0,0.00223985]
[1729002566955,0.83548,66962.0,66961.0,0.00223985]
[1729002567159,0.074664,66976.0,66961.0,0.00223985]
[1729002567160,0.4,66968.0,66961.0,0.00223985]
[1729002567359,0.3608,66970.0,66961.0,0.00223985]
[1729002567860,0.43548,66962.0,66961.0,0.00223985]
[1729002568083,0.44748,66962.0,66961.0,0.00223985]
[1729002568585,0.074691,66953.0,66944.0,0.3608]
[1729002569078,0.3608,66962.0,66951.0,0.22409363]
[1729002569079,0.4,66960.0,66951.0,0.22409363]
[1729002569377,0.4,66960.0,66941.0,0.00751634]
[1729002569378,0.3608,66962.0,66950.0,0.3608]
[1729002569582,0.3608,66962.0,66947.0,0.22288107]
[1729002569583,0.4,66955.0,66952.0,0.22288107]
[1729002569779,0.4,66955.0,66945.0,0.22288107]
[1729002569780,0.7608,66953.0,66944.0,0.58368107]
[1729002569977,0.474699,66945.0,66944.0,0.58368107]
[1729002570183,0.074695,66949.0,66946.0,0.22377627]
[1729002570684,0.074695,66949.0,66944.0,0.58457627]
[1729002570685,0.4,66950.0,66947.0,0.22377627]
[1729002570884,0.074696,66948.0,66947.0,0.22377627]
[1729002571084,0.074696,66948.0,66946.0,0.22315417]
[1729002571287,0.3608,66953.0,66945.0,0.22315417]
[1729002571482,0.4,66946.0,66939.0,0.00224066]
[1729002571684,0.3608,66953.0,66939.0,0.00224066]
[1729002571685,0.474704,66940.0,66939.0,0.00224066]
[1729002571882,0.7608,66940.0,66924.0,0.01090082]
[1729002572080,0.7608,66940.0,66922.0,0.074724]
[1729002572081,0.4,66928.0,66922.0,0.074724]
[1729002572288,0.4,66928.0,66926.0,0.22514593]
[1729002572495,0.07472,66926.0,66923.0,0.22514593]
[1729002572682,0.07472,66926.0,66919.0,0.37232934]
[1729002572683,0.4,66928.0,66919.0,0.0001538]
[1729002572889,0.4,66921.0,66919.0,0.0001538]
[1729002573188,0.474726,66921.0,66920.0,0.2253408]
[1729002573394,0.074726,66921.0,66919.0,0.0001538]
[1729002573691,0.3608,66924.0,66919.0,0.0001538]
[1729002573879,0.074725,66922.0,66919.0,0.0001538]
[1729002574190,0.3608,66924.0,66919.0,0.0001538]
[1729002574495,0.3608,66924.0,66891.0,0.7324]
[1729002574496,0.074748,66901.0,66899.0,0.3608]
[1729002574696,1.20924,66900.0,66878.0,0.3608]
[1729002574896,0.3608,66879.0,66872.0,0.41850959]
[1729002575094,0.474768,66884.0,66874.0,0.22555023]
[1729002575298,0.3608,66894.0,66874.0,0.4]
[1729002575793,0.3608,66887.0,66875.0,0.30032723]
[1729002575984,0.3608,66887.0,66875.0,0.22555023]
[1729002576183,0.014,66879.0,66874.0,0.22499642]
[1729002576373,0.014,66879.0,66878.0,0.074773]
[1729002576580,0.028,66879.0,66878.0,0.074773]
[1729002576784,0.3608,66893.0,66878.0,0.22499642]
[1729002576985,0.4,66890.0,66878.0,0.22499642]
[1729002577277,0.4,66890.0,66883.0,0.3608]
[1729002577767,0.4,66890.0,66884.0,0.22356844]
[1729002577768,0.3608,66890.0,66884.0,0.22356844]
[1729002577979,0.4,66885.0,66884.0,0.22356844]
[1729002578269,0.07477,66881.0,66880.0,0.22325172]
[1729002578473,0.074775,66877.0,66863.0,0.07479]
[1729002578768,0.4,66875.0,66874.0,0.22425172]
[1729002579182,0.7608,66875.0,66874.0,0.001]
[1729002579391,1.8094,66875.0,66853.0,0.3608]
[1729002579569,0.4,66857.0,66853.0,0.3608]
[1729002579762,0.074795,66859.0,66856.0,0.22300991]
[1729002579966,0.074795,66859.0,66854.0,0.22300991]
[1729002580265,0.4,66863.0,66857.0,0.22499001]
[1729002580471,0.7608,66858.0,66857.0,0.01909001]
[1729002580665,0.074804,66851.0,66850.0,0.00357538]
[1729002580873,0.835604,66851.0,66850.0,3.8e-07]
[1729002581065,1.884364,66851.0,66850.0,3.8e-07]
[1729002581374,0.474804,66851.0,66850.0,3.8e-07]
[1729002581560,0.474804,66851.0,66837.0,0.05770959]
[1729002581561,0.074816,66840.0,66837.0,0.05770959]
[1729002581973,1.123656,66840.0,66837.0,0.05770959]
[1729002582373,0.474827,66830.0,66829.0,0.0007799]
[1729002582667,0.835627,66830.0,66829.0,0.0007799]
[1729002582967,0.435628,66830.0,66814.0,0.4]
[1729002583163,0.4,66836.0,66824.0,0.3608]
[1729002583362,0.4,66830.0,66824.0,0.3608]
[1729002583666,0.02188309,66840.0,66825.0,0.22562511]
[1729002583667,0.3608,66835.0,66825.0,0.22562511]
[1729002583967,0.074823,66828.0,66819.0,0.22420719]
[1729002584163,0.074817,66833.0,66824.0,0.3608]
[1729002584666,0.3608,66849.0,66832.0,0.7608]
[1729002584870,0.074789,66858.0,66848.0,0.3608]
[1729002585064,0.074795,66853.0,66848.0,0.3608]
[1729002585264,0.074799,66850.0,66848.0,0.3608]
[1729002585868,0.7608,66861.0,66848.0,0.3608]
[1729002586066,0.3608,66874.0,66855.0,0.3608]
[1729002586273,0.3608,66874.0,66861.0,0.3608]
[1729002586470,0.07478,66866.0,66861.0,0.3608]
[1729002586873,0.3608,66877.0,66862.0,0.22474668]
[1729002587170,0.074774,66871.0,66869.0,0.3608]
[1729002587670,0.074784,66862.0,66861.0,0.3608]
[1729002587972,0.3608,66877.0,66855.0,0.3608]
[1729002587973,0.4,66864.0,66855.0,0.3608]
[1729002588163,0.4,66858.0,66854.0,0.3608]
[1729002588370,0.4,66858.0,66848.0,0.001]
[1729002588674,0.074792,66855.0,66853.0,0.3608]
[1729002588975,0.074787,66859.0,66853.0,0.3608]
[1729002589368,0.001,66862.0,66847.0,0.3608]
[1729002589369,0.074794,66853.0,66847.0,0.3608]
[1729002589575,0.4748,66848.0,66847.0,0.3608]
[1729002589767,0.0748,66848.0,66847.0,0.3608]
[1729002589966,0.0748,66848.0,66847.0,0.58445546]
[1729002590682,0.001,66855.0,66847.0,0.58445546]
[1729002590683,0.074799,66849.0,66847.0,0.58445546]
[1729002591176,0.4,66848.0,66847.0,0.3608]
[1729002591377,0.074799,66849.0,66847.0,0.3608]
[1729002592077,0.074799,66849.0,66847.0,0.3618]
[1729002592272,0.4,66848.0,66847.0,0.3618]
[1729002592467,0.4,66848.0,66816.0,0.4]
[1729002592468,0.074823,66827.0,66826.0,0.3608]
[1729002592881,0.4,66830.0,66826.0,0.3608]
[1729002593174,0.074799,66849.0,66847.0,0.014]
[1729002593175,0.0748,66848.0,66847.0,0.014]
[1729002593874,1.1236,66848.0,66847.0,0.014]
[1729002594075,0.0748,66848.0,66829.0,0.3598]
[1729002594280,0.4,66840.0,66829.0,0.3598]
[1729002594775,0.012,66830.0,66829.0,0.3598]
[1729002595668,0.012,66830.0,66829.0,0.9598]
[1729002595883,0.08682,66830.0,66829.0,0.3598]
[1729002596082,0.07482,66830.0,66829.0,0.3608]
[1729002596375,0.006,66840.0,66829.0,0.9608]
[1729002596567,0.07482,66830.0,66829.0,0.3608]
[1729002597773,0.07482,66830.0,66829.0,0.3598]
[1729002598077,0.08882,66830.0,66829.0,0.3598]
[1729002599571,0.074838,66814.0,66813.0,0.3608]
[1729002599974,0.014,66830.0,66813.0,0.58462103]
[1729002599975,0.074833,66819.0,66813.0,0.58462103]
[1729002600172,0.414,66830.0,66813.0,0.58462103]
[1729002600371,0.074821,66829.0,66813.0,0.58462103]
[1729002600577,0.414,66830.0,66813.0,0.22382103]
[1729002600578,0.074838,66814.0,66813.0,0.22382103]
[1729002600777,0.074852,66801.0,66800.0,0.3608]
[1729002600980,0.074852,66801.0,66796.0,0.01099959]
[1729002600981,0.3608,66801.0,66796.0,0.01099959]
[1729002601282,0.3608,66801.0,66775.0,0.4]
[1729002601283,0.074868,66788.0,66764.0,0.7608]
[1729002601473,0.3608,66801.0,66764.0,0.7608]
[1729002601474,0.074893,66765.0,66764.0,0.3608]
[1729002601879,0.074893,66765.0,66764.0,0.22366591]
[1729002602075,0.3608,66768.0,66758.0,0.3608]
[1729002602377,0.4,66766.0,66763.0,0.074894]
[1729002602688,0.4,66773.0,66765.0,0.3608]
[1729002602979,0.4,66773.0,66758.0,0.3608]
[1729002602980,0.4,66767.0,66758.0,0.3608]
[1729002603181,0.4,66767.0,66735.0,0.10857586]
[1729002603182,0.074907,66753.0,66744.0,0.3608]
[1729002603383,0.4,66760.0,66751.0,0.3608]
[1729002603581,0.4,66759.0,66751.0,0.3608]
[1729002603880,0.435695,66763.0,66758.0,0.3608]
[1729002603881,0.00212001,66763.0,66758.0,0.3608]
[1729002604082,0.074843,66810.0,66758.0,0.3608]
[1729002604083,0.4,66762.0,66758.0,0.3608]
[1729002604279,0.4,66762.0,66752.0,0.15680544]
[1729002604584,0.3748,66765.0,66751.0,0.3608]
[1729002604585,0.474906,66753.0,66751.0,0.3608]
[1729002604781,0.4,66753.0,66739.0,0.3608]
[1729002605079,0.4,66753.0,66740.0,0.22540591]
[1729002605284,0.074915,66746.0,66740.0,0.22540591]
[1729002605484,0.4,66753.0,66739.0,0.3608]
[1729002605485,0.07492,66741.0,66739.0,0.3608]
[1729002606187,0.4,66760.0,66740.0,0.2248219]
[1729002606379,0.014,66753.0,66751.0,0.4]
[1729002606688,0.074888,66769.0,66751.0,0.474908]
[1729002606885,0.074891,66767.0,66757.0,0.3608]
[1729002607186,0.3608,66766.0,66752.0,0.16159072]
[1729002607386,0.3608,66760.0,66752.0,0.16159072]
[1729002607582,0.3608,66760.0,66753.0,0.22443005]
[1729002607986,0.3608,66760.0,66749.0,0.07491]
[1729002608198,0.3608,66754.0,66740.0,0.3608]
[1729002608384,0.3608,66754.0,66739.0,0.08580779]
[1729002608385,0.014,66741.0,66739.0,0.08580779]
[1729002608588,0.3608,66754.0,66739.0,0.08580779]
[1729002608589,0.3608,66754.0,66741.0,0.61987067]
[1729002608782,0.206955,66799.0,66753.0,0.4]
[1729002608783,0.3608,66775.0,66753.0,0.4]
[1729002608980,0.074833,66819.0,66774.0,0.4]
[1729002608981,0.074872,66784.0,66774.0,0.4]
[1729002609184,0.00216,66781.0,66774.0,0.4]
[1729002609387,0.3608,66789.0,66780.0,0.4]
[1729002609788,0.43565,66803.0,66788.0,0.4]
[1729002609978,0.3608,66810.0,66796.0,0.3608]
[1729002610297,6.104e-05,66802.0,66800.0,0.074853]
[1729002610476,0.3608,66816.0,66809.0,0.074843]
[1729002610685,0.3608,66824.0,66809.0,0.074843]
[1729002610986,0.3608,66824.0,66808.0,0.3608]
[1729002610987,0.074839,66813.0,66810.0,0.22931469]
[1729002611286,0.4,66813.0,66810.0,0.38986959]
[1729002611482,0.4,66813.0,66808.0,0.3608]
[1729002611483,0.3608,66824.0,66808.0,0.3608]
[1729002611484,0.074828,66823.0,66808.0,0.3608]
[1729002611682,0.074832,66820.0,66808.0,0.3608]
[1729002611885,0.4,66814.0,66808.0,0.3608]
[1729002612082,0.39626,66809.0,66808.0,0.3608]
[1729002612284,0.39626,66809.0,66782.0,0.00224578]
[1729002612285,0.3608,66809.0,66800.0,0.4]
[1729002612487,0.3608,66809.0,66790.0,0.3608]
[1729002612488,0.3608,66809.0,66806.0,0.4]
[1729002612682,0.3608,66809.0,66804.0,0.074849]
[1729002612890,0.3608,66809.0,66806.0,0.4]
[1729002613190,0.3608,66809.0,66807.0,0.2254207]
[1729002613390,0.00013976,66808.0,66807.0,0.2254207]
[1729002613688,0.00013976,66808.0,66805.0,0.00374]
[1729002613896,0.00013976,66808.0,66800.0,0.4]
[1729002613897,0.00013976,66808.0,66807.0,0.074846]
[1729002614193,0.002,66813.0,66811.0,0.074841]
[1729002614492,0.002,66813.0,66807.0,0.84052677]
[1729002614493,0.3608,66812.0,66808.0,0.014]
[1729002614880,0.3608,66812.0,66811.0,0.4]
[1729002615297,0.3608,66812.0,66811.0,0.38663065]
[1729002615483,0.3608,66812.0,66811.0,0.2250498]
[1729002615677,0.3608,66812.0,66811.0,0.8250498]
[1729002615883,0.3608,66812.0,66811.0,0.6]
[1729002616077,0.3608,66812.0,66811.0,0.2250498]
[1729002616488,0.3608,66812.0,66808.0,0.22506204]
[1729002616686,0.4,66810.0,66807.0,0.001]
[1729002616893,0.074844,66809.0,66807.0,0.001]
[1729002617284,0.4,66810.0,66804.0,0.00374]
[1729002617587,0.435648,66805.0,66804.0,0.00374]
[1729002617785,0.3608,66805.0,66804.0,0.00374]
[1729002617981,0.3608,66805.0,66804.0,1.27461632]
[1729002618182,0.3608,66805.0,66804.0,1.28574807]
[1729002618383,0.3608,66805.0,66804.0,1.46021175]
[1729002618582,0.3608,66823.0,66810.0,0.074842]
[1729002618882,0.3608,66816.0,66811.0,0.22476833]
[1729002619080,0.07484,66812.0,66811.0,0.22476833]
[1729002619384,0.3608,66815.0,66801.0,0.00374]
[1729002619590,0.4,66802.0,66801.0,0.00374]
[1729002620091,0.44912,66801.0,66777.0,0.0022456]
[1729002620284,0.4,66778.0,66777.0,0.0022456]
[1729002620594,0.4,66778.0,66750.0,0.3608]
[1729002620595,0.4,66778.0,66744.0,0.3608]
[1729002620792,0.3608,66749.0,66731.0,0.43361989]
[1729002620994,0.3532,66749.0,66745.0,0.22559389]
[1729002621183,0.3532,66749.0,66738.0,0.3608]
[1729002621184,0.3532,66749.0,66739.0,0.4]
[1729002621379,0.3532,66749.0,66739.0,0.22330391]
[1729002621593,0.0001102,66748.0,66740.0,0.39821795]
[1729002621889,0.3608,66761.0,66745.0,0.4]
[1729002622094,0.3608,66761.0,66751.0,0.4]
[1729002622390,0.074855,66799.0,66765.0,0.074892]
[1729002622391,0.3608,66776.0,66765.0,0.074892]
[1729002622887,0.3608,66776.0,66766.0,0.22394805]
[1729002623295,0.435681,66776.0,66765.0,0.22438788]
[1729002623589,0.3608,66776.0,66773.0,0.074883]
[1729002623790,0.3608,66776.0,66768.0,0.474889]
[1729002623980,0.3608,66776.0,66774.0,0.22438788]
[1729002624291,0.3608,66776.0,66769.0,0.22438788]
[1729002624292,0.074887,66771.0,66769.0,0.22438788]
[1729002624482,0.3608,66776.0,66767.0,0.22341844]
[1729002624794,0.3608,66769.0,66768.0,0.22341844]
[1729002624985,0.3608,66776.0,66768.0,0.22341844]
[1729002625184,0.3618,66776.0,66768.0,0.074888]
[1729002625689,0.3618,66776.0,66769.0,1.47058047]
[1729002625893,0.3608,66783.0,66782.0,0.074874]
[1729002626091,0.074825,66826.0,66786.0,0.074869]
[1729002626092,0.3608,66796.0,66786.0,0.074869]
[1729002626395,0.074861,66794.0,66787.0,0.22570944]
[1729002626690,0.3608,66788.0,66787.0,0.22570944]
[1729002626892,0.435667,66788.0,66787.0,0.22570944]
[1729002627086,0.3608,66788.0,66773.0,0.4]
[1729002627293,0.3608,66782.0,66781.0,0.074875]
[1729002627492,0.3608,66782.0,66781.0,0.674875]
[1729002627689,0.3608,66782.0,66781.0,1.42931481]
[1729002627893,0.3608,66782.0,66781.0,1.34833035]
[1729002628584,0.3608,66782.0,66781.0,1.57425951]
[1729002628898,0.3608,66782.0,66781.0,0.601]
[1729002629094,0.7608,66782.0,66781.0,0.001]
[1729002629789,1.3608,66782.0,66753.0,0.07281989]
[1729002630001,0.7608,66765.0,66752.0,0.074907]
[1729002630195,0.7608,66765.0,66757.0,0.22390516]
[1729002630395,0.3608,66765.0,66755.0,0.22466516]
[1729002630700,0.435677,66779.0,66764.0,0.435693]
[1729002630895,0.3608,66779.0,66764.0,0.3608]
[1729002631094,0.3608,66779.0,66769.0,0.074888]
[1729002631287,0.3608,66779.0,66765.0,0.62038131]
[1729002631288,0.3608,66779.0,66770.0,0.074887]
[1729002631490,0.217254,66800.0,66776.0,0.07488]
[1729002631491,0.3608,66781.0,66776.0,0.07488]
[1729002631882,0.074868,66788.0,66777.0,0.22360087]
[1729002632087,0.1424,66800.0,66763.0,0.07281989]
[1729002632088,0.3608,66778.0,66763.0,0.07281989]
[1729002632297,0.07488,66777.0,66765.0,0.074893]
[1729002632490,0.3608,66778.0,66772.0,0.074884]
[1729002632688,0.3608,66778.0,66770.0,0.22450921]
[1729002632887,0.3608,66778.0,66773.0,0.38929972]
[1729002633187,0.3608,66778.0,66772.0,0.16546477]
[1729002633390,0.3608,66778.0,66769.0,0.16546477]
[1729002633593,0.3608,66778.0,66763.0,0.08400438]
[1729002633798,0.3608,66771.0,66770.0,0.39649952]
[1729002634094,0.3608,66771.0,66764.0,0.39649952]
[1729002634289,0.074889,66768.0,66763.0,0.08400438]
[1729002634488,0.3608,66771.0,66763.0,0.08400438]
[1729002634692,0.3628,66778.0,66769.0,0.4]
[1729002634904,0.35966491,66778.0,66777.0,0.474879]
[1729002635190,0.1318,66816.0,66777.0,0.474879]
[1729002635191,0.3608,66796.0,66777.0,1.0987239]
[1729002635389,0.3608,66804.0,66792.0,0.3608]
[1729002635588,0.3608,66804.0,66793.0,0.00643857]
[1729002635789,0.3608,66804.0,66793.0,0.39829643]
[1729002635990,0.3608,66811.0,66793.0,0.39829643]
[1729002635991,0.3608,66811.0,66803.0,0.4]
[1729002636192,0.3608,66818.0,66804.0,1.20984]
[1729002636391,0.3608,66818.0,66811.0,0.074841]
[1729002636589,0.4,66817.0,66799.0,0.62328254]
[1729002636894,0.074843,66809.0,66797.0,0.39877964]
[1729002637097,0.4,66811.0,66800.0,0.39877964]
[1729002637287,0.3608,66805.0,66800.0,0.39877964]
[1729002637490,0.074849,66804.0,66800.0,0.22548282]
[1729002637686,0.3608,66805.0,66800.0,0.22548282]
[1729002638389,0.3608,66805.0,66801.0,0.16474795]
[1729002638599,0.3608,66805.0,66803.0,0.07485]
[1729002638795,0.435649,66805.0,66801.0,0.16550795]
[1729002638995,0.3608,66805.0,66800.0,0.001]
[1729002639500,0.074852,66801.0,66800.0,0.001]
[1729002639703,0.4,66804.0,66800.0,0.001]
[1729002640004,0.3608,66805.0,66800.0,0.675853]
[1729002640208,0.3608,66805.0,66804.0,0.074849]
[1729002640506,0.3608,66805.0,66804.0,0.29999308]
[1729002640710,0.3608,66811.0,66804.0,1.43650521]
[1729002641002,0.7608,66811.0,66804.0,0.22514408]
[1729002641196,0.3608,66805.0,66801.0,0.001]
[1729002641399,0.3608,66805.0,66800.0,0.074853]
[1729002641599,0.3608,66811.0,66802.0,0.22591545]
[1729002641800,0.074842,66810.0,66802.0,0.22591545]
[1729002641997,0.3608,66811.0,66804.0,0.001]
[1729002642193,0.074844,66809.0,66804.0,0.001]
[1729002642405,0.3608,66811.0,66805.0,0.22450432]
[1729002642804,0.3608,66811.0,66805.0,0.38976604]
[1729002643105,0.435642,66811.0,66805.0,0.22450432]
[1729002643308,0.4,66810.0,66809.0,0.05881746]
[1729002643506,0.4,66810.0,66806.0,0.05881746]
[1729002643698,0.3608,66808.0,66804.0,0.001]
[1729002644006,0.074848,66805.0,66804.0,0.001]
[1729002644304,0.074848,66805.0,66793.0,0.01109841]
[1729002644305,0.3608,66808.0,66800.0,0.07281989]
[1729002644497,0.3608,66808.0,66804.0,0.38222909]
[1729002644811,0.3608,66808.0,66806.0,0.07281989]
[1729002645099,0.3608,66808.0,66807.0,0.14766589]
[1729002645305,0.3608,66814.0,66808.0,0.074844]
[1729002645501,0.3608,66814.0,66808.0,0.07354538]
[1729002645701,0.3608,66814.0,66809.0,0.68021689]
[1729002645898,0.3608,66814.0,66809.0,0.38238007]
[1729002646101,0.3608,66814.0,66808.0,0.38238007]
[1729002646304,0.3608,66814.0,66810.0,0.38118829]
[1729002646505,0.074841,66811.0,66810.0,0.38118829]
[1729002646702,0.074841,66811.0,66809.0,0.38118829]
[1729002646901,0.3608,66814.0,66811.0,0.15627447]
[1729002647213,0.3608,66814.0,66799.0,0.07358832]
[1729002647214,0.074854,66800.0,66799.0,0.07358832]
[1729002647403,0.074868,66787.0,66785.0,0.08800513]
[1729002647602,0.796454,66800.0,66767.0,0.21016955]
[1729002647603,0.074882,66775.0,66771.0,0.08800513]
[1729002647909,0.3608,66776.0,66772.0,0.07898744]
[1729002648205,0.074889,66768.0,66767.0,0.00076]
[1729002648399,0.435689,66768.0,66767.0,0.07862926]
[1729002648599,0.074891,66767.0,66762.0,0.3608]
[1729002648909,0.3608,66768.0,66759.0,0.00019069]
[1729002649215,0.435698,66760.0,66759.0,0.00019069]
[1729002650003,0.3608,66760.0,66759.0,0.07929726]
[1729002650399,0.435698,66760.0,66759.0,0.07929726]
[1729002650595,0.435698,66760.0,66759.0,0.00019069]
[1729002651099,0.435698,66760.0,66750.0,0.08847923]
[1729002651100,0.0749,66759.0,66750.0,0.08847923]
[1729002651296,0.3608,66760.0,66748.0,0.09418808]
[1729002651297,0.35769,66751.0,66749.0,0.08847923]
[1729002651599,0.35769,66751.0,66748.0,0.09418808]
[1729002651600,0.074911,66749.0,66748.0,0.09418808]
[1729002652104,0.07509506,66749.0,66748.0,0.09418808]
[1729002652606,0.00018406,66749.0,66748.0,0.09418808]
[1729002652814,0.00018406,66749.0,66748.0,1.38043051]
[1729002653808,0.00018406,66749.0,66748.0,0.09418808]
[1729002654109,0.01318406,66749.0,66748.0,0.09518808]
[1729002655608,0.01318406,66749.0,66748.0,2.1921586]
[1729002655801,0.3608,66770.0,66757.0,0.4]
[1729002656002,0.3608,66770.0,66758.0,0.07909196]
[1729002656203,0.3608,66782.0,66771.0,0.074886]
[1729002656499,0.3608,66790.0,66775.0,0.4]
[1729002656699,0.3608,66790.0,66779.0,0.3608]
[1729002656906,0.3608,66790.0,66780.0,0.0778519]
[1729002657105,0.3608,66796.0,66786.0,0.3608]
[1729002657301,0.3608,66796.0,66784.0,0.074871]
[1729002657495,0.3608,66796.0,66787.0,0.38258269]
[1729002657700,0.3608,66803.0,66791.0,0.4]
[1729002657899,0.3608,66797.0,66786.0,0.3608]
[1729002658101,0.435658,66797.0,66788.0,0.22455784]
[1729002658308,0.435658,66797.0,66784.0,0.4]
[1729002658309,0.3608,66797.0,66787.0,0.44923247]
[1729002658499,0.074861,66794.0,66787.0,0.22467463]
[1729002658702,0.074862,66793.0,66788.0,0.22527913]
[1729002658901,0.474865,66790.0,66788.0,0.22527913]
[1729002659105,0.07487,66786.0,66784.0,0.3608]
[1729002659703,0.3608,66791.0,66780.0,0.003]
[1729002659704,0.7608,66785.0,66780.0,0.003]
[1729002659908,0.074877,66780.0,66770.0,0.08827369]
[1729002660109,0.3608,66779.0,66771.0,0.07811732]
[1729002660412,0.3608,66779.0,66762.0,0.1458142]
[1729002660413,0.3608,66779.0,66774.0,0.22324766]
[1729002660608,0.3608,66779.0,66772.0,0.22324766]
[1729002660609,0.074874,66782.0,66772.0,0.61273872]
[1729002660809,0.074874,66782.0,66771.0,0.4]
[1729002660810,0.7608,66779.0,66773.0,0.07811862]
[1729002661004,0.4,66774.0,66769.0,0.00088]
[1729002661206,0.3608,66770.0,66765.0,0.00084]
[1729002661406,0.074891,66767.0,66765.0,0.00084]
[1729002661611,0.074891,66767.0,66752.0,0.4]
[1729002661612,0.074898,66760.0,66752.0,0.08827369]
[1729002661808,0.3608,66760.0,66747.0,0.08827369]
[1729002662007,0.3608,66754.0,66748.0,0.07919682]
[1729002662209,0.3608,66754.0,66741.0,0.08827369]
[1729002662411,0.3608,66748.0,66742.0,0.07953729]
[1729002662715,0.3608,66748.0,66743.0,0.1578469]
[1729002662916,0.074916,66745.0,66739.0,0.38263298]
[1729002663108,0.074914,66746.0,66740.0,0.47964494]
[1729002663309,0.07492,66741.0,66740.0,0.1578469]
[1729002663512,0.3608,66744.0,66739.0,0.15986622]
[1729002663811,0.074921,66740.0,66737.0,0.0137372]
[1729002664017,0.3608,66744.0,66740.0,0.15986622]
[1729002664210,0.3608,66756.0,66741.0,0.07989658]
[1729002664419,0.3608,66756.0,66754.0,0.4]
[1729002664604,0.3608,66763.0,66754.0,0.4]
[1729002664605,0.36075577,66763.0,66754.0,0.4]
[1729002664803,0.36075577,66763.0,66760.0,0.4]
[1729002665015,0.36075577,66763.0,66755.0,0.38824812]
[1729002665212,0.36075577,66763.0,66751.0,0.22422382]
[1729002665213,0.074907,66752.0,66751.0,0.22422382]
[1729002665415,0.074909,66751.0,66742.0,0.4]
[1729002665608,0.3608,66750.0,66744.0,0.22347307]
[1729002665914,0.3608,66750.0,66740.0,0.16662735]